fUSD/lending_fUSD_20260313
["ID","MTS","AMOUNT","RATE_DAILY","PERIOD"]
[408326660,1773431446729,-500.0,0.00019999,2]
[408326661,1773431446747,-256.33749485,0.00019999,2]
[408326662,1773431446757,-500.0,0.00019999,2]
[408326663,1773431446767,-500.0,0.00019999,2]
[408326664,1773431446776,-500.0,0.00019999,2]
[408326665,1773431446786,-500.0,0.00019999,2]
[408326666,1773431446796,-500.0,0.00019999,2]
[408326667,1773431446806,-1204.0,0.0002,2]
[408326668,1773431446818,-30050.75390018,0.0002,2]
[408326669,1773431452015,154.15,0.00010142,2]
[408326670,1773431452232,154.15,0.0001217,2]
[408326671,1773431485694,920.0,0.0003287,120]
[408326672,1773431486490,1315.68616933,0.0003287,120]
[408326673,1773431488550,199.45738296,0.0003287,120]
[408326675,1773431994689,5359.05137063,0.0001199,2]
[408326676,1773432002019,12317.35711781,8e-05,2]
[408326677,1773432071649,5104.27294213,0.0002,10]
[408326682,1773432449155,-154.15,0.00014198,2]
[408326683,1773432449188,-1663.71,0.0001595,2]
[408326684,1773432449209,-154.15,0.00016226,2]
[408326685,1773432449230,-424.36245241,0.00018173,2]
[408326686,1773432449250,-154.15,0.00018255,2]
[408326687,1773432449271,-264.0,0.00018637,2]
[408326688,1773432449292,-264.0,0.00018799,2]
[408326689,1773432449312,-300.0,0.00018799,2]
[408326690,1773432449333,-1003.90775037,0.000188,2]
[408326698,1773432632008,-2000.0,0.00018677,2]
[408326699,1773432632019,-210.51,0.00018678,2]
[408326700,1773432632029,-620.0,0.000188,2]
[408326701,1773432632038,-727.2944,0.000188,2]
[408326702,1773432632050,-315.7056,0.000188,2]
[408326703,1773432632060,-1403.849,0.000188,2]
[408326704,1773432632070,-1214.0,0.000188,2]
[408326705,1773432632080,-923.0,0.000188,2]
[408326706,1773432632089,-3240.0,0.00018878,2]
[408326707,1773432632099,-500.0,0.000189,2]
[408326708,1773432632109,-500.26320598,0.000189,2]
[408326709,1773432632119,-502.82313972,0.000189,2]
[408326710,1773432632129,-500.0,0.000189,2]
[408326711,1773432632140,-500.0,0.000189,2]
[408326712,1773432632157,-500.0,0.000189,2]
[408326713,1773432632169,-500.0,0.000189,2]
[408326714,1773432632179,-500.0,0.000189,2]
[408326715,1773432632189,-200.0,0.0001897,2]
[408326716,1773432632198,-168.0,0.00018972,2]
[408326717,1773432632208,-674.90610033,0.00018985,2]
[408326718,1773432632222,-1325.09389967,0.00018985,2]
[408326720,1773432632232,-150.0,0.00018989,2]
[408326722,1773432632244,-500.0,0.00018993,2]
[408326724,1773432632254,-500.0,0.00018993,2]
[408326726,1773432632264,-381.65256335,0.00018993,2]
[408326727,1773432632274,-174.61919141,0.00018993,2]
[408326728,1773432632284,-200.0,0.00018993,2]
[408326729,1773432632295,-264.0,0.00019044,2]
[408326730,1773432632304,-237.3453157,0.00019097,2]
[408326731,1773432632314,-300.0,0.000191,6]
[408326732,1773432632324,-700.0,0.000192,7]
[408326733,1773432632334,-424.36,0.0001924,2]
[408326734,1773432632344,-1000.0,0.000193,7]
[408326735,1773432632354,-2808.0,0.0001936,2]
[408326736,1773432632363,-1400.0,0.000194,7]
[408326737,1773432632373,-500.0,0.00019448,2]
[408326738,1773432632383,-666.93318768,0.00019448,2]
[408326739,1773432632393,-688.9940742,0.00019448,2]
[408326740,1773432632403,-1056.3926764,0.000195,2]
[408326741,1773432632412,-1800.0,0.000195,7]
[408326742,1773432632422,-214.34971157,0.00019541,2]
[408326743,1773432632433,-200.0,0.00019562,2]
[408326744,1773432632443,-200.0,0.00019562,2]
[408326745,1773432632453,-300.0,0.000196,7]
[408326746,1773432632463,-150.0,0.00019626,6]
[408326747,1773432632473,-150.0,0.00019626,6]
[408326748,1773432632483,-150.0,0.00019626,6]
[408326749,1773432632492,-150.0,0.00019626,2]
[408326750,1773432632502,-168.0,0.00019665,2]
[408326751,1773432632512,-500.0,0.00019665,2]
[408326752,1773432632522,-300.0,0.000197,7]
[408326753,1773432632536,-150.0,0.00019723,2]
[408326754,1773432632546,-150.0,0.00019723,2]
[408326755,1773432632556,-150.0,0.00019726,2]
[408326756,1773432632567,-150.0,0.00019726,2]
[408326757,1773432632576,-150.0,0.00019726,2]
[408326758,1773432632587,-160.0,0.00019777,2]
[408326759,1773432632597,-150.0,0.00019778,2]
[408326760,1773432632607,-257.0,0.00019778,2]
[408326761,1773432632617,-150.0,0.00019781,2]
[408326762,1773432632627,-150.0,0.00019781,2]
[408326763,1773432632636,-150.0,0.00019781,2]
[408326764,1773432632646,-197.12274,0.000198,2]
[408326765,1773432632658,-197.12275,0.000198,2]
[408326766,1773432632670,-6236.3184,0.000198,2]
[408326767,1773432632679,-300.0,0.000198,7]
[408326768,1773432632689,-1230.84336007,0.000198,2]
[408326769,1773432632700,-1000.0,0.00019808,2]
[408326770,1773432632711,-1230.84336004,0.00019811,2]
[408326771,1773432632721,-1230.84336004,0.00019822,2]
[408326772,1773432632731,-1230.84336004,0.00019833,2]
[408326773,1773432632741,-1230.84336004,0.00019844,2]
[408326774,1773432632750,-1995.81079396,0.0001985,2]
[408326775,1773432632759,-1230.84336004,0.00019856,2]
[408326776,1773432632769,-1230.84336004,0.00019867,2]
[408326777,1773432632779,-782.14,0.00019871,2]
[408326778,1773432632788,-5800.0,0.00019875,2]
[408326779,1773432632798,-1230.84336004,0.00019878,2]
[408326780,1773432632808,-153.56106976,0.00019878,2]
[408326781,1773432632818,-2463.0,0.0001988,2]
[408326782,1773432632829,-5998.0,0.0001988,2]
[408326783,1773432632839,-5800.0,0.00019883,2]
[408326784,1773432632850,-1230.84336004,0.00019889,2]
[408326785,1773432632860,-181.956,0.00019898,2]
[408326786,1773432632870,-2592.006,0.00019898,2]
[408326787,1773432632880,-192.42999418,0.000199,6]
[408326788,1773432632890,-285.84060365,0.000199,6]
[408326789,1773432632900,-261.67718485,0.000199,6]
[408326790,1773432632910,-276.70571077,0.000199,6]
[408326791,1773432632923,-39657.74991262,0.000199,2]
[408326792,1773432632937,-8419.63878738,0.000199,2]
[408326793,1773432632947,-258.60096035,0.000199,2]
[408326794,1773432632959,-241.39903965,0.000199,2]
[408326795,1773432632970,-337.53416247,0.000199,2]
[408326796,1773432632979,-1449.31907868,0.000199,2]
[408326797,1773432632989,-300.0,0.000199,7]
[408326798,1773432632999,-13654.63877594,0.000199,2]
[408326799,1773432633016,-292.97700002,0.000199,2]
[408326800,1773432633032,-14060.18614339,0.000199,2]
[408326801,1773432633042,-1230.84336004,0.000199,2]
[408326802,1773432633052,-168.0,0.00019939,2]
[408326803,1773432633062,-500.0,0.0001997,2]
[408326804,1773432633072,-500.0,0.0001997,2]
[408326805,1773432633082,-500.0,0.0001997,2]
[408326806,1773432633091,-500.0,0.0001997,2]
[408326807,1773432633100,-1000.0,0.0001997,2]
[408326808,1773432633111,-1000.0,0.0001997,2]
[408326809,1773432633122,-1000.0,0.0001997,2]
[408326810,1773432633133,-500.0,0.0001997,2]
[408326811,1773432633142,-500.0,0.0001997,2]
[408326812,1773432633152,-947.70236221,0.0001997,2]
[408326813,1773432633161,-1000.0,0.0001997,2]
[408326814,1773432633170,-1000.0,0.0001997,2]
[408326815,1773432633180,-1000.0,0.0001997,2]
[408326816,1773432633190,-1000.0,0.0001997,2]
[408326817,1773432633199,-1000.0,0.0001997,2]
[408326818,1773432633209,-1956.7780659,0.0001997,2]
[408326819,1773432633219,-8.85050668,0.00019971,2]
[408326826,1773432638092,-1204.49569765,0.000199,2]
[408326827,1773432638102,-294.14949332,0.00019971,2]
[408326828,1773432638113,-502.81664943,0.00019973,2]
[408326832,1773432638334,-500.92517317,0.00019973,2]
[408326835,1773432638345,-500.0,0.00019973,2]
[408326837,1773432638359,-214.13008223,0.00019973,2]
[408326839,1773432638370,-285.86991777,0.00019973,2]
[408326841,1773432638380,-124.16208225,0.00019973,2]
[408326843,1773432638392,-375.83791775,0.00019973,2]
[408326845,1773432638401,-77.17106594,0.00019973,2]
[408326847,1773432638413,-422.82893406,0.00019973,2]
[408326849,1773432638422,-151.0,0.00019997,2]
[408326851,1773432638432,-151.0,0.00019997,2]
[408326853,1773432638442,-151.0,0.00019997,2]
[408326855,1773432638451,-151.0,0.00019997,2]
[408326857,1773432638460,-164.51508203,0.00019999,2]
[408326859,1773432638471,-335.48491797,0.00019999,2]
[408326861,1773432638480,-305.453767,0.00019999,2]
[408326864,1773432638495,-194.55598908,0.00019999,2]
[408326866,1773432638505,-155.0,0.00019999,2]
[408326868,1773432638516,-588.84,0.00019999,2]
[408326870,1773432638525,-500.0,0.00019999,2]
[408326872,1773432638535,-191.39028097,0.00019999,2]
[408326874,1773432638544,-500.0,0.00019999,2]
[408326876,1773432638554,-500.0,0.00019999,2]
[408326878,1773432638563,-500.0,0.00019999,2]
[408326880,1773432638572,-500.0,0.00019999,2]
[408326882,1773432638582,-554.34014391,0.00019999,2]
[408326884,1773432638591,-500.0,0.00019999,2]
[408326886,1773432638600,-500.0,0.00019999,2]
[408326888,1773432638610,-500.0,0.00019999,2]
[408326890,1773432638618,-171.40613236,0.00019999,2]
[408326892,1773432638630,-500.0,0.00019999,2]
[408326894,1773432638639,-500.0,0.00019999,2]
[408326896,1773432638648,-500.0,0.00019999,2]
[408326898,1773432638658,-500.0,0.00019999,2]
[408326900,1773432638669,-500.0,0.00019999,2]
[408326902,1773432638678,-238.12810972,0.00019999,2]
[408326904,1773432638687,-330.46806079,0.00019999,2]
[408326906,1773432638700,-500.0,0.00019999,2]
[408326908,1773432638710,-500.0,0.00019999,2]
[408326909,1773432638719,-245.25595034,0.00019999,2]
[408326911,1773432638728,-500.0,0.00019999,2]
[408326913,1773432638740,-500.0,0.00019999,2]
[408326915,1773432638750,-500.0,0.00019999,2]
[408326917,1773432638759,-489.65933266,0.00019999,2]
[408326919,1773432638769,-500.0,0.00019999,2]
[408326921,1773432638779,-475.12005917,0.00019999,2]
[408326923,1773432638788,-387.8789313,0.00019999,2]
[408326926,1773432638798,-968.0,0.0002,2]
[408326927,1773432638807,-1451.0,0.0002,2]
[408326930,1773432638817,-257506.47724161,0.0002,2]
[408326933,1773432638840,-91.31797177,0.0002,2]
[408327005,1773432640248,-414.0,0.0001988,2]
[408327006,1773432640259,-1396655.33573401,0.0002,2]
[408327007,1773432640271,-4783.16358,0.0002,2]
[408327008,1773432640511,-580.42188632,0.0002,2]
[408327014,1773432643195,-1746.9190931,0.0002,2]
[408327015,1773432643248,-10764.03789383,0.0002,2]
[408327016,1773432643259,-20030.36061481,0.0002,2]
[408327017,1773432643302,-410.16752071,0.0002,2]
[408327018,1773432643357,-94952.4977379,0.0002,2]
[408327019,1773432643464,-1016.49353724,0.0002,2]
[408327020,1773432643518,-1870.06482011,0.0002,2]
[408327042,1773432646132,-5632.25459061,0.000199,2]
[408327043,1773432646143,-26272.87261529,0.000199,2]
[408327044,1773432646153,-182351.79781195,0.0002,2]
[408327045,1773432646266,-8995.41348923,0.0002,2]
[408327046,1773432646278,-432.69733184,0.0002,2]
[408327047,1773432646289,-6427.70322156,0.0002,2]
[408327048,1773432646301,-883.4800005,0.0002,2]
[408327049,1773432646313,-5570.45453968,0.0002,2]
[408327050,1773432646328,-4074.12,0.0002,2]
[408327051,1773432646340,-327.3868122,0.0002,2]
[408327053,1773432708363,1000.0,0.00032877,120]
[408327054,1773432749413,1000.0,0.00032877,120]
[408327055,1773432791339,1000.0,0.00032877,120]
[408327056,1773432832092,1000.0,0.00032877,120]
[408327058,1773432875435,1000.0,0.00032877,120]
[408327059,1773432916041,947.12112875,0.00032877,120]
[408327060,1773432973410,200.580199,0.00032877,120]
[408327061,1773433214256,1000.0,0.0003264,120]
[408327062,1773433214899,1000.0,0.0003264,120]
[408327063,1773433648123,-310.735509,0.00018289,2]
[408327064,1773433648146,-560.97061425,0.00018382,2]
[408327065,1773433781838,5115.58456973,0.00032877,120]
[408327068,1773433816544,2650.0,0.00032877,120]
[408327072,1773433832161,-2808.0,0.000184,2]
[408327073,1773433832171,-213.96,0.00018632,2]
[408327074,1773433832181,-200.0,0.00018695,2]
[408327075,1773433832191,-480.0,0.00018699,2]
[408327076,1773433832200,-28886.6632958,0.000187,2]
[408327077,1773433832318,-93558.5619042,0.000187,2]
[408327078,1773433832328,-150.0,0.00018702,2]
[408327079,1773433832338,-2808.0,0.0001872,2]
[408327080,1773433832349,-196.4,0.00018733,2]
[408327081,1773433832358,-1500.0,0.00018733,2]
[408327082,1773433832368,-5769.88297866,0.00018774,2]
[408327083,1773433832379,-2329.6,0.00018895,2]
[408327085,1773433832388,-174.61919143,0.00018999,2]
[408327087,1773433832398,-500.0,0.00018999,2]
[408327089,1773433832408,-500.0,0.00018999,2]
[408327091,1773433832417,-500.0,0.00018999,2]
[408327094,1773433832430,-500.0,0.00018999,2]
[408327096,1773433832439,-500.0,0.00018999,2]
[408327098,1773433832449,-500.0,0.00018999,2]
[408327099,1773433832458,-500.0,0.00018999,2]
[408327101,1773433832468,-500.0,0.00018999,2]
[408327103,1773433832478,-500.0,0.00018999,2]
[408327105,1773433832488,-500.0,0.00018999,2]
[408327107,1773433832498,-500.0,0.00018999,2]
[408327108,1773433832508,-200.0,0.000191,6]
[408327109,1773433832518,-400.0,0.000192,7]
[408327111,1773433832527,-1000.0,0.0001926,2]
[408327113,1773433832537,-700.0,0.000193,7]
[408327115,1773433832548,-1168.22,0.00019302,2]
[408327117,1773433832557,-1034.80767449,0.00019342,2]
[408327119,1773433832567,-2808.0,0.0001936,2]
[408327121,1773433832577,-2329.6,0.00019368,2]
[408327122,1773433832587,-250.0,0.000194,2]
[408327123,1773433832597,-250.0,0.000194,2]
[408327124,1773433832606,-250.0,0.000194,2]
[408327125,1773433832616,-250.0,0.000194,2]
[408327126,1773433832625,-250.0,0.000194,2]
[408327127,1773433832634,-250.0,0.000194,2]
[408327128,1773433832644,-250.0,0.000194,2]
[408327129,1773433832654,-250.0,0.000194,2]
[408327130,1773433832663,-250.0,0.000194,2]
[408327131,1773433832672,-250.0,0.000194,2]
[408327132,1773433832682,-250.0,0.000194,2]
[408327133,1773433832691,-250.0,0.000194,2]
[408327134,1773433832701,-395.47,0.000194,2]
[408327135,1773433832710,-98.23893293,0.000194,7]
[408327136,1773433832722,-801.76106707,0.000194,7]
[408327137,1773433832734,-250.0,0.00019448,2]
[408327138,1773433832743,-350.0,0.00019477,2]
[408327139,1773433832752,-350.0,0.00019489,2]
[408327140,1773433832762,-168.0,0.00019497,2]
[408327141,1773433832771,-250.0,0.000195,2]
[408327142,1773433832782,-1200.0,0.000195,7]
[408327143,1773433832791,-168.0,0.00019501,2]
[408327144,1773433832801,-504.98137836,0.00019501,2]
[408327145,1773433832811,-700.0,0.00019502,2]
[408327146,1773433832820,-168.0,0.00019503,2]
[408327147,1773433832831,-977.80429591,0.0001951,2]
[408327148,1773433832841,-350.0,0.00019514,2]
[408327149,1773433832851,-1000.0,0.00019534,2]
[408327150,1773433832860,-250.0,0.00019541,2]
[408327151,1773433832870,-150.0,0.00019562,2]
[408327152,1773433832879,-250.0,0.00019562,2]
[408327153,1773433832889,-150.0,0.00019562,2]
[408327154,1773433832898,-150.0,0.00019562,2]
[408327155,1773433832908,-150.0,0.00019562,2]
[408327156,1773433832917,-500.0,0.00019562,2]
[408327157,1773433832928,-500.0,0.00019562,2]
[408327158,1773433832937,-500.0,0.00019562,2]
[408327159,1773433832947,-160.57620522,0.00019562,2]
[408327160,1773433832957,-150.0,0.00019562,2]
[408327161,1773433832967,-150.0,0.00019562,2]
[408327162,1773433832977,-150.0,0.00019562,2]
[408327163,1773433832986,-818.06,0.00019562,2]
[408327164,1773433832995,-150.0,0.00019562,2]
[408327165,1773433833005,-500.0,0.00019562,2]
[408327166,1773433833018,-220.02326955,0.00019562,2]
[408327167,1773433833027,-150.0,0.00019562,2]
[408327168,1773433833037,-150.0,0.00019562,2]
[408327169,1773433833047,-150.0,0.00019562,2]
[408327170,1773433833057,-150.0,0.00019562,2]
[408327171,1773433833066,-150.0,0.00019562,2]
[408327172,1773433833075,-500.0,0.00019562,2]
[408327173,1773433833085,-150.0,0.00019562,2]
[408327174,1773433833096,-150.0,0.00019562,2]
[408327175,1773433833105,-150.0,0.00019562,2]
[408327176,1773433833115,-213.96,0.00019564,2]
[408327177,1773433833125,-528.0,0.00019564,2]
[408327178,1773433833135,-350.0,0.00019584,2]
[408327179,1773433833144,-250.0,0.000196,2]
[408327180,1773433833154,-2569.34042202,0.000196,2]
[408327181,1773433833163,-200.0,0.000196,7]
[408327182,1773433833172,-168.0,0.00019605,2]
[408327183,1773433833182,-150.79,0.00019617,2]
[408327184,1773433833195,-539.0,0.00019617,2]
[408327185,1773433833205,-500.0,0.00019617,2]
[408327186,1773433833215,-500.0,0.00019617,2]
[408327187,1773433833224,-219.97141228,0.00019617,2]
[408327188,1773433833234,-250.0,0.00019617,2]
[408327189,1773433833243,-150.0,0.00019617,2]
[408327190,1773433833253,-253.29632904,0.00019617,2]
[408327191,1773433833263,-500.0,0.00019617,2]
[408327192,1773433833273,-150.0,0.00019617,2]
[408327193,1773433833283,-150.0,0.00019617,2]
[408327194,1773433833293,-150.0,0.00019617,2]
[408327195,1773433833302,-150.0,0.00019617,2]
[408327196,1773433833312,-150.0,0.00019617,2]
[408327197,1773433833322,-500.0,0.00019617,2]
[408327198,1773433833331,-150.0,0.00019617,2]
[408327199,1773433833534,-250.0,0.00019626,2]
[408327200,1773433833546,-250.0,0.00019665,2]
[408327201,1773433833556,-638.90238757,0.00019672,2]
[408327202,1773433833565,-500.0,0.00019672,2]
[408327203,1773433833575,-150.0,0.00019672,2]
[408327204,1773433833585,-500.0,0.00019672,2]
[408327205,1773433833594,-150.0,0.00019672,2]
[408327206,1773433833604,-150.0,0.00019672,2]
[408327207,1773433833614,-150.0,0.00019672,2]
[408327208,1773433833623,-1042.87085396,0.00019673,2]
[408327209,1773433833633,-979.08812684,0.00019695,2]
[408327210,1773433833643,-250.0,0.000197,2]
[408327211,1773433833653,-200.0,0.000197,7]
[408327212,1773433833661,-250.0,0.00019726,2]
[408327213,1773433833670,-150.0,0.00019726,2]
[408327214,1773433833680,-500.0,0.00019726,2]
[408327215,1773433833690,-150.0,0.00019726,2]
[408327216,1773433833699,-150.0,0.00019726,2]
[408327217,1773433833709,-168.0,0.00019748,2]
[408327218,1773433833719,-196.4,0.00019774,2]
[408327219,1773433833728,-250.0,0.00019778,2]
[408327220,1773433833738,-150.0,0.00019781,2]
[408327221,1773433833747,-500.0,0.00019781,2]
[408327222,1773433833756,-250.0,0.00019781,2]
[408327223,1773433833766,-150.0,0.00019781,2]
[408327224,1773433833776,-1336.86355369,0.00019798,2]
[408327225,1773433833785,-21264.36720696,0.00019798,2]
[408327226,1773433833797,-4795.31149304,0.00019798,2]
[408327227,1773433833807,-2500.0,0.000198,2]
[408327228,1773433833816,-500.0,0.000198,2]
[408327229,1773433833826,-526.14129,0.000198,2]
[408327230,1773433833835,-526.1413,0.000198,2]
[408327231,1773433833844,-200.0,0.000198,7]
[408327232,1773433833854,-250.0,0.000198,2]
[408327233,1773433833864,-1000.0,0.00019808,2]
[408327234,1773433833875,-1336.86355368,0.00019809,2]
[408327235,1773433833886,-1336.86355368,0.00019821,2]
[408327236,1773433833895,-1336.86355368,0.00019832,2]
[408327237,1773433833909,-250.0,0.00019836,2]
[408327238,1773433833918,-154.17330698,0.00019836,2]
[408327239,1773433833928,-818.06,0.00019836,2]
[408327240,1773433833940,-2329.6,0.0001984,2]
[408327241,1773433833950,-1336.86355368,0.00019843,2]
[408327242,1773433833960,-250.0,0.00019844,2]
[408327243,1773433833969,-1336.86355368,0.00019855,2]
[408327244,1773433833979,-1336.86355368,0.00019866,2]
[408327245,1773433833988,-250.0,0.00019875,2]
[408327246,1773433833998,-9683.76543058,0.00019898,2]
[408327247,1773433834007,-5785.93002606,0.00019898,2]
[408327248,1773433834018,-9683.76543058,0.00019898,2]
[408327249,1773433834031,-4000.32825921,0.00019898,2]
[408327250,1773433834080,-665.72995843,0.00019898,2]
[408327251,1773433834091,-1113.3960453,0.00019898,2]
[408327252,1773433834105,-2002.36598113,0.00019898,2]
[408327253,1773433834115,-1424.51542341,0.00019898,2]
[408327254,1773433834127,-477.4297631,0.00019898,2]
[408327255,1773433834136,-98.3202369,0.00019899,2]
[408327256,1773433834148,-854.30213,0.00019899,2]
[408327257,1773433834159,-2072.84178342,0.00019899,2]
[408327262,1773433838264,-160.0,0.00019874,2]
[408327263,1773433838274,-703.73012948,0.00019877,2]
[408327264,1773433838286,-633.1334242,0.00019877,2]
[408327265,1773433838295,-705.65879289,0.00019899,2]
[408327266,1773433838306,-5952.64248737,0.00019899,2]
[408327267,1773433838315,-9683.76543058,0.00019899,2]
[408327268,1773433838323,-500.0,0.00019899,2]
[408327269,1773433838332,-500.0,0.00019899,2]
[408327270,1773433838341,-176.90649176,0.00019899,2]
[408327271,1773433838351,-5785.93002604,0.00019899,2]
[408327272,1773433838359,-500.0,0.00019899,2]
[408327273,1773433838368,-9683.76543058,0.00019899,2]
[408327274,1773433838377,-9683.76543058,0.00019899,2]
[408327275,1773433838386,-176.90649176,0.000199,2]
[408327276,1773433838396,-9683.76543058,0.000199,2]
[408327277,1773433838405,-9683.76543058,0.000199,2]
[408327278,1773433838414,-21526.8023,0.000199,2]
[408327279,1773433838423,-1000.0,0.000199,2]
[408327280,1773433838432,-173.225,0.000199,2]
[408327281,1773433838442,-2349.647,0.000199,2]
[408327282,1773433838452,-250.0,0.000199,2]
[408327283,1773433838461,-738.85149047,0.000199,2]
[408327284,1773433838471,-200.0,0.000199,7]
[408327285,1773433838480,-9683.76543058,0.000199,2]
[408327286,1773433838490,-176.90649176,0.000199,2]
[408327287,1773433838499,-5785.93002604,0.000199,2]
[408327288,1773433838508,-2000.0,0.000199,2]
[408327289,1773433838517,-5158.30499531,0.000199,2]
[408327290,1773433838527,-540.96249816,0.000199,2]
[408327291,1773433838535,-153.56106976,0.00019925,2]
[408327292,1773433838545,-250.0,0.00019939,2]
[408327293,1773433838554,-250.0,0.0001997,2]
[408327294,1773433838565,-500.3680898,0.00019973,2]
[408327295,1773433838575,-500.0,0.00019973,2]
[408327296,1773433838585,-500.0,0.00019973,2]
[408327297,1773433838594,-500.0,0.00019973,2]
[408327299,1773433838604,-500.0,0.00019973,2]
[408327301,1773433838613,-1054.29329688,0.0001999,2]
[408327303,1773433838622,-1054.29329688,0.0001999,2]
[408327305,1773433838631,-1054.29329688,0.0001999,2]
[408327307,1773433838641,-151.0,0.00019997,2]
[408327309,1773433838650,-151.0,0.00019997,2]
[408327311,1773433838659,-151.0,0.00019997,2]
[408327313,1773433838668,-500.0,0.00019997,2]
[408327315,1773433838677,-178.09600392,0.00019997,2]
[408327317,1773433838686,-233.21976763,0.00019997,2]
[408327318,1773433838695,-433.65502671,0.00019997,2]
[408327320,1773433838704,-29200.610623,0.00019998,2]
[408327322,1773433838713,-136206.57062003,0.00019998,2]
[408327344,1773433838915,-640.11344789,0.00019998,2]
[408327346,1773433838927,-2589.49791791,0.00019998,2]
[408327348,1773433838939,-422.58467,0.00019998,2]
[408327351,1773433838950,-2181.6451335,0.00019998,2]
[408327353,1773433838961,-1042.26304133,0.00019998,2]
[408327355,1773433838974,-6814.94453654,0.00019998,2]
[408327357,1773433838986,-12496.31740234,0.00019998,2]
[408327360,1773433839006,-3424.37572502,0.00019998,2]
[408327362,1773433839017,-1548.78893979,0.00019998,2]
[408327365,1773433839032,-314.73026685,0.00019998,2]
[408327380,1773433840530,-3168.6017929,0.00019998,2]
[408327381,1773433840540,-7491.4983857,0.00019998,2]
[408327382,1773433840550,-393457.7689773,0.00019998,2]
[408327383,1773433840559,-375.832979,0.00019998,2]
[408327384,1773433840568,-375.832979,0.00019998,2]
[408327385,1773433840577,-375.832979,0.00019998,2]
[408327386,1773433840587,-375.832979,0.00019998,2]
[408327387,1773433840596,-151.0,0.00019998,2]
[408327388,1773433840605,-151.0,0.00019998,2]
[408327389,1773433840614,-151.0,0.00019998,2]
[408327390,1773433840623,-151.0,0.00019998,2]
[408327391,1773433840632,-151.0,0.00019998,2]
[408327392,1773433840641,-151.0,0.00019998,2]
[408327393,1773433840650,-151.0,0.00019998,2]
[408327394,1773433840659,-151.0,0.00019998,2]
[408327395,1773433840668,-151.0,0.00019998,2]
[408327396,1773433840677,-751.919627,0.00019998,2]
[408327397,1773433840686,-751.919627,0.00019998,2]
[408327398,1773433840695,-751.919627,0.00019998,2]
[408327399,1773433840704,-751.919627,0.00019998,2]
[408327400,1773433840714,-178.962555,0.00019998,2]
[408327401,1773433840723,-178.962555,0.00019998,2]
[408327402,1773433840732,-178.962555,0.00019998,2]
[408327403,1773433840741,-181.485896,0.00019998,2]
[408327404,1773433840750,-178.962555,0.00019998,2]
[408327405,1773433840759,-181.485896,0.00019998,2]
[408327406,1773433840768,-181.485896,0.00019998,2]
[408327407,1773433840778,-181.485896,0.00019998,2]
[408327408,1773433840787,-553.988829,0.00019998,2]
[408327409,1773433840796,-553.988829,0.00019998,2]
[408327410,1773433840806,-553.988829,0.00019998,2]
[408327411,1773433840815,-553.988829,0.00019998,2]
[408327412,1773433840824,-2515.951026,0.00019998,2]
[408327413,1773433840833,-2515.951026,0.00019998,2]
[408327414,1773433840842,-2515.951026,0.00019998,2]
[408327415,1773433840852,-2515.951026,0.00019998,2]
[408327416,1773433840861,-151.0,0.00019998,2]
[408327417,1773433840870,-151.0,0.00019998,2]
[408327418,1773433840879,-630.023573,0.00019998,2]
[408327419,1773433840888,-630.023573,0.00019998,2]
[408327420,1773433840897,-630.023573,0.00019998,2]
[408327421,1773433840907,-630.023573,0.00019998,2]